bitfinex-derivatives/quotes_BTCF0:USTF0_20250218
["timestamp","ask_amount","ask_price","bid_price","bid_amount"]
[1739889700464,0.1869173,96050.0,96037.0,0.12704]
[1739889700656,0.3608,96049.0,96036.0,0.3608]
[1739889700858,0.2082597,96042.0,96036.0,0.48784]
[1739889701062,0.2082597,96042.0,96036.0,0.3608]
[1739889701261,0.2082481,96047.0,96036.0,0.3608]
[1739889701562,0.2082525,96045.0,96036.0,0.3608]
[1739889702062,0.36176001,96049.0,96036.0,0.3608]
[1739889702367,0.2082679,96038.0,96036.0,0.3608]
[1739889702564,0.208274,96035.0,96034.0,0.00015617]
[1739889703852,0.208274,96035.0,96034.0,0.00115617]
[1739889703853,0.209274,96035.0,96034.0,0.00115617]
[1739889704468,0.6618,96035.0,96000.0,0.1]
[1739889704670,0.2083377,96006.0,96000.0,0.1]
[1739889704856,0.3608,96008.0,95977.0,0.36236258]
[1739889705057,0.2083817,95986.0,95977.0,0.00156258]
[1739889705458,0.3608,95987.0,95977.0,0.00156258]
[1739889705961,0.3608,95978.0,95977.0,0.00156258]
[1739889706171,0.5691977,95978.0,95977.0,0.00156258]
[1739889706366,0.3608,95987.0,95977.0,0.00156258]
[1739889707259,0.2083977,95978.0,95977.0,0.00156258]
[1739889707857,0.2084072,95974.0,95972.0,0.00015626]
[1739889708557,0.36176001,95979.0,95972.0,0.00015626]
[1739889708763,0.36176001,95987.0,95973.0,0.3608]
[1739889708962,0.001,95987.0,95973.0,0.3608]
[1739889709163,0.1869173,95983.0,95973.0,0.3608]
[1739889709363,0.3608,95978.0,95972.0,0.00015626]
[1739889709566,0.001,95974.0,95972.0,0.00015626]
[1739889709867,0.001,95978.0,95972.0,0.00015626]
[1739889710075,0.2084086,95973.0,95972.0,0.00015626]
[1739889710474,0.3,95973.0,95957.0,0.00156303]
[1739889710675,0.3608,95963.0,95949.0,0.3608]
[1739889710966,0.1397,95972.0,95949.0,0.3608]
[1739889710967,0.1869173,95970.0,95949.0,0.3608]
[1739889711560,0.1869173,95980.0,95967.0,0.3608]
[1739889711762,0.00015626,95970.0,95967.0,0.3608]
[1739889711971,0.00015626,95970.0,95957.0,0.3608]
[1739889712171,0.18707356,95970.0,95957.0,0.3608]
[1739889712479,0.3608,95964.0,95950.0,0.00010449]
[1739889712671,0.3608,95956.0,95937.0,0.3608]
[1739889712975,0.3608,95943.0,95925.0,0.3608]
[1739889713176,0.1869173,95935.0,95925.0,0.3608]
[1739889713375,0.00108,95943.0,95934.0,0.3608]
[1739889713675,0.1859173,95950.0,95934.0,0.3608]
[1739889713876,0.3608,95947.0,95934.0,0.3608]
[1739889714066,0.3608,95947.0,95918.0,0.9088]
[1739889714262,0.5477173,95928.0,95914.0,0.36136]
[1739889714474,0.3608,95915.0,95906.0,0.00064]
[1739889714664,0.3608,95907.0,95900.0,0.1]
[1739889714868,0.13316,95914.0,95900.0,0.1]
[1739889715384,0.00015635,95913.0,95900.0,0.1]
[1739889716473,0.3608,95902.0,95885.0,0.3608]
[1739889716675,0.1869173,95899.0,95885.0,0.3608]
[1739889716871,0.3608,95894.0,95885.0,0.3608]
[1739889717073,0.20708213,95894.0,95885.0,0.3608]
[1739889717579,0.1869173,95900.0,95885.0,0.3608]
[1739889718080,0.2085834,95893.0,95885.0,0.3608]
[1739889718286,0.2085962,95887.0,95885.0,0.3608]
[1739889718575,0.2086268,95873.0,95851.0,0.3608]
[1739889718780,0.3608,95894.0,95867.0,0.3608]
[1739889718974,0.3608,95894.0,95877.0,0.3608]
[1739889719283,0.18707373,95890.0,95871.0,0.3608]
[1739889719474,0.2086218,95875.0,95859.0,0.3608]
[1739889719675,0.3608,95866.0,95851.0,0.068]
[1739889719977,0.3608,95866.0,95856.0,0.3608]
[1739889720278,0.1869173,95870.0,95856.0,0.3608]
[1739889720476,0.00015643,95871.0,95856.0,0.3608]
[1739889720672,0.00015643,95871.0,95865.0,0.3608]
[1739889720872,0.00015643,95871.0,95868.0,0.3608]
[1739889721073,0.00015643,95871.0,95868.0,0.5694357]
[1739889721276,0.00156532,95886.0,95876.0,0.2086174]
[1739889721473,0.00156532,95886.0,95885.0,0.3608]
[1739889721975,0.2085998,95885.0,95879.0,0.35569346]
[1739889722181,0.2086134,95879.0,95868.0,0.3608]
[1739889722382,0.1869173,95880.0,95868.0,0.3608]
[1739889722579,0.1869173,95880.0,95853.0,0.3608]
[1739889722580,0.3608,95874.0,95864.0,0.00015643]
[1739889722783,0.1869173,95870.0,95853.0,0.3608]
[1739889722985,0.1869173,95880.0,95861.0,0.3608]
[1739889723481,0.00015643,95883.0,95870.0,0.5477173]
[1739889723785,0.002,95880.0,95879.0,0.3608]
[1739889724679,0.002,95880.0,95870.0,0.0006]
[1739889724878,0.1889173,95880.0,95863.0,0.3608]
[1739889725187,0.2086453,95865.0,95863.0,0.3608]
[1739889725488,0.208616,95878.0,95863.0,0.3608]
[1739889725676,0.3608,95882.0,95863.0,0.3608]
[1739889726173,0.1869173,95873.0,95863.0,0.3608]
[1739889726373,0.2086211,95876.0,95863.0,0.3608]
[1739889726576,0.006,95865.0,95863.0,0.3608]
[1739889726981,0.2146437,95865.0,95863.0,0.3608]
[1739889727880,0.006,95865.0,95863.0,0.3608]
[1739889728074,0.3608,95882.0,95863.0,0.3608]
[1739889728274,0.2086135,95879.0,95863.0,0.3608]
[1739889728474,0.2086238,95874.0,95864.0,0.0717]
[1739889728875,0.006,95865.0,95864.0,0.0717]
[1739889729377,0.2086328,95870.0,95864.0,0.0717]
[1739889729681,0.003,95879.0,95864.0,0.0717]
[1739889729977,0.002,95865.0,95864.0,0.0717]
[1739889730781,0.2106434,95865.0,95864.0,0.0717]
[1739889730985,0.002,95865.0,95864.0,0.0717]
[1739889731587,0.1869173,95880.0,95864.0,0.0717]
[1739889731772,0.2086418,95866.0,95864.0,0.0717]
[1739889732285,0.004,95865.0,95864.0,0.0717]
[1739889732883,0.2086654,95855.0,95850.0,0.46136]
[1739889733075,0.2086736,95852.0,95850.0,0.1]
[1739889733280,0.2086736,95852.0,95851.0,0.3608]
[1739889734071,0.00992975,95857.0,95842.0,0.0663]
[1739889734284,0.1869173,95852.0,95842.0,0.0663]
[1739889734470,0.208679,95849.0,95842.0,0.0663]
[1739889734677,0.2086912,95843.0,95830.0,0.3608]
[1739889734976,0.2086967,95841.0,95830.0,0.3608]
[1739889735175,0.3618,95855.0,95838.0,0.3608]
[1739889735384,0.3608,95855.0,95838.0,0.3608]
[1739889735580,0.002,95857.0,95847.0,0.3608]
[1739889735782,0.3608,95851.0,95826.0,0.3608]
[1739889736082,0.2087078,95836.0,95826.0,0.3608]
[1739889736281,0.1869173,95840.0,95823.0,0.134]
[1739889736478,0.1869173,95833.0,95823.0,0.134]
[1739889736679,0.2087196,95830.0,95823.0,0.4948]
[1739889736979,0.00015652,95841.0,95823.0,0.635234]
[1739889737186,0.00015652,95841.0,95823.0,0.4265]
[1739889737381,0.00015652,95841.0,95832.0,0.3608]
[1739889737681,0.00015652,95841.0,95840.0,0.3608]
[1739889738278,0.208711,95834.0,95823.0,0.0657]
[1739889738478,0.208713,95833.0,95832.0,0.3608]
[1739889739281,0.569507,95836.0,95824.0,0.2087321]
[1739889739576,0.3608,95836.0,95827.0,0.2087257]
[1739889739784,0.3608,95836.0,95823.0,0.0657]
[1739889739988,0.2087203,95830.0,95823.0,0.0657]
[1739889740285,0.3608,95827.0,95823.0,0.0657]
[1739889740592,0.3608,95827.0,95806.0,0.3608]
[1739889740593,0.2087427,95820.0,95806.0,0.3608]
[1739889740792,0.0691,95839.0,95819.0,0.3608]
[1739889740981,0.2087008,95839.0,95825.0,0.3608]
[1739889741287,0.00156596,95847.0,95836.0,0.2087052]
[1739889741483,0.00156596,95847.0,95835.0,0.3608]
[1739889741880,0.00156596,95847.0,95840.0,0.3608]
[1739889742079,0.00156596,95847.0,95846.0,0.2086847]
[1739889742281,0.18848261,95880.0,95846.0,0.3608]
[1739889742478,0.00156531,95880.0,95873.0,0.3608]
[1739889742683,0.2086205,95876.0,95873.0,0.3608]
[1739889742892,0.00156531,95880.0,95865.0,0.066]
[1739889742893,0.01136093,95880.0,95865.0,0.066]
[1739889743094,0.2086401,95867.0,95865.0,0.066]
[1739889743288,0.2086253,95874.0,95865.0,0.4268]
[1739889743592,0.36336531,95880.0,95865.0,0.4268]
[1739889743793,0.37262363,95880.0,95865.0,0.4268]
[1739889744390,0.2086455,95864.0,95863.0,0.00015652]
[1739889744584,0.2086877,95845.0,95843.0,0.8574182]
[1739889744889,0.3608,95849.0,95829.0,0.2087198]
[1739889745089,0.3608,95838.0,95828.0,0.6348226]
[1739889745287,0.3608,95849.0,95828.0,0.4261]
[1739889745487,0.001,95851.0,95837.0,0.3608]
[1739889745793,0.00015652,95848.0,95838.0,0.14912]
[1739889745997,0.00015652,95848.0,95837.0,0.3608]
[1739889746291,0.001,95861.0,95853.0,0.2086681]
[1739889746492,0.00156561,95881.0,95855.0,0.3608]
[1739889746793,0.003,95880.0,95871.0,0.3608]
[1739889746989,0.00156561,95881.0,95876.0,0.2086181]
[1739889747300,0.3608,95907.0,95880.0,0.3608]
[1739889747595,0.00015652,95888.0,95882.0,0.2086058]
[1739889747782,0.00015652,95888.0,95883.0,0.065]
[1739889748185,0.3608,95925.0,95883.0,0.2736033]
[1739889748387,0.37081312,95925.0,95894.0,0.3608]
[1739889748796,0.2085199,95922.0,95896.0,0.2085755]
[1739889748993,0.2085346,95916.0,95905.0,0.3608]
[1739889749198,0.37081312,95925.0,95908.0,0.3608]
[1739889749398,0.3608,95911.0,95901.0,0.00015643]
[1739889749693,0.3608,95902.0,95901.0,0.00015643]
[1739889749893,0.2085426,95912.0,95901.0,0.00015643]
[1739889750095,0.3608,95913.0,95901.0,0.00015643]
[1739889750486,0.3608,95913.0,95908.0,0.001]
[1739889750892,0.5693685,95909.0,95908.0,0.001]
[1739889751197,0.2085837,95902.0,95901.0,0.00015643]
[1739889751587,0.36136001,95909.0,95901.0,0.00015643]
[1739889751790,0.3608,95909.0,95901.0,0.00015643]
[1739889751987,0.3608,95909.0,95901.0,0.00115643]
[1739889752186,0.007,95912.0,95901.0,0.00115643]
[1739889752706,0.007,95902.0,95901.0,0.00115643]
[1739889753090,0.2085837,95902.0,95901.0,0.00015643]
[1739889753291,0.2085837,95902.0,95901.0,0.00115643]
[1739889753693,0.2085837,95902.0,95878.0,0.0656]
[1739889753892,0.208649,95872.0,95863.0,0.0648]
[1739889754291,0.2086658,95865.0,95857.0,0.2453007]
[1739889754602,0.36136001,95876.0,95857.0,0.2453007]
[1739889754603,0.3608,95858.0,95857.0,0.2453007]
[1739889755489,0.7216,95858.0,95857.0,0.2453007]
[1739889755886,0.7216,95858.0,95857.0,0.2493007]
[1739889756693,0.7216,95858.0,95857.0,0.1395007]
[1739889756897,0.2086991,95849.0,95848.0,0.00015643]
[1739889757198,0.5694991,95849.0,95848.0,0.00015643]
[1739889758098,0.3608,95849.0,95826.0,0.9094]
[1739889758290,0.3608,95849.0,95839.0,0.2087191]
[1739889758291,0.3608,95841.0,95839.0,0.2087191]
[1739889758488,0.36144,95849.0,95839.0,0.2087191]
[1739889758694,0.3608,95849.0,95832.0,0.3608]
[1739889758899,0.3608,95849.0,95840.0,0.3608]
[1739889759202,0.36136001,95862.0,95848.0,0.5695012]
[1739889759394,0.3608,95862.0,95848.0,0.5695012]
[1739889759999,0.3608,95862.0,95855.0,0.2086854]
[1739889760189,0.36140001,95873.0,95861.0,0.3608]
[1739889760395,0.001,95862.0,95859.0,0.3608]
[1739889760595,0.3608,95887.0,95859.0,0.3608]
[1739889760802,0.3608,95887.0,95864.0,0.2086657]
[1739889761100,0.3608,95887.0,95869.0,0.3608]
[1739889761302,0.3608,95887.0,95870.0,0.43827721]
[1739889761502,0.3608,95887.0,95872.0,0.2086476]
[1739889761699,0.3608,95873.0,95842.0,0.3608]
[1739889761902,0.3608,95858.0,95843.0,0.21998]
[1739889762107,0.3608,95858.0,95843.0,0.0715]
[1739889762296,0.2086637,95866.0,95843.0,0.2802106]
[1739889762493,0.00015643,95860.0,95853.0,0.3608]
[1739889762904,0.00015643,95860.0,95854.0,0.2086866]
[1739889763105,0.001,95858.0,95856.0,0.2086832]
[1739889763705,0.00015643,95860.0,95856.0,0.2086832]
[1739889763706,0.00415643,95860.0,95856.0,0.2086832]
[1739889764006,0.3608,95882.0,95857.0,0.0732]
[1739889764205,0.2086022,95894.0,95871.0,0.20865]
[1739889764406,0.42796001,95895.0,95880.0,0.188171]
[1739889764407,0.3608,95895.0,95880.0,0.188171]
[1739889764791,0.5693999,95895.0,95877.0,0.3608]
[1739889765100,0.57158741,95903.0,95881.0,0.2086283]
[1739889765404,0.00015643,95896.0,95890.0,0.188171]
[1739889765799,0.00015643,95896.0,95890.0,0.3967787]
[1739889765996,0.00156491,95903.0,95895.0,0.3608]
[1739889766198,0.00212492,95903.0,95895.0,0.3608]
[1739889766397,0.00156491,95903.0,95895.0,0.3608]
[1739889766802,0.3608,95924.0,95896.0,0.3608]
[1739889767003,0.3608,95924.0,95909.0,0.3608]
[1739889767410,0.00015643,95920.0,95909.0,0.3608]
[1739889767600,0.00015643,95920.0,95912.0,0.2085604]
[1739889767903,0.00015643,95920.0,95918.0,0.3608]
[1739889768908,0.00015643,95920.0,95915.0,0.208554]
[1739889769108,0.2085612,95913.0,95907.0,0.00015643]
[1739889769410,0.00015643,95920.0,95912.0,0.3608]
[1739889769708,0.00015643,95920.0,95918.0,0.003]
[1739889770105,0.00015643,95920.0,95913.0,0.0731]
[1739889770915,0.2085569,95915.0,95912.0,0.003]
[1739889771102,0.36095643,95920.0,95912.0,0.003]
[1739889771815,0.2085589,95914.0,95912.0,0.003]
[1739889772411,0.2085652,95911.0,95907.0,0.00015643]
[1739889773410,0.00056001,95912.0,95907.0,0.00015643]
[1739889773613,0.003,95911.0,95907.0,0.00015643]
[1739889775311,0.004,95911.0,95907.0,0.00015643]
[1739889775816,0.00015643,95920.0,95907.0,0.00015643]
[1739889776010,0.004,95911.0,95907.0,0.00015643]
[1739889776211,0.2085675,95910.0,95907.0,0.00015643]
[1739889776409,0.004,95911.0,95907.0,0.00015643]
[1739889776610,0.002,95911.0,95907.0,0.00015643]
[1739889777311,0.2085577,95914.0,95907.0,0.00115643]
[1739889777512,0.00015643,95920.0,95907.0,0.00115643]
[1739889777720,0.00015643,95920.0,95915.0,0.2085548]
[1739889777910,0.00015643,95920.0,95918.0,0.2085468]
[1739889778419,0.00015643,95920.0,95914.0,0.3608]
[1739889778618,0.00015643,95920.0,95911.0,0.0707]
[1739889778812,0.005,95911.0,95907.0,0.00015643]
[1739889779411,0.36144,95912.0,95907.0,0.00015643]
[1739889779612,0.3608,95912.0,95907.0,0.00015643]
[1739889779915,0.00315643,95920.0,95919.0,0.2085467]
[1739889780309,0.18480627,95930.0,95929.0,0.208525]
[1739889780515,0.18480627,95930.0,95929.0,0.569325]
[1739889780722,0.18480627,95930.0,95929.0,0.208525]
[1739889781710,0.18480627,95930.0,95927.0,0.3608]
[1739889782021,0.18480627,95930.0,95918.0,0.1435]
[1739889782022,0.39332957,95930.0,95918.0,0.1435]
[1739889782216,0.18480627,95930.0,95918.0,0.1435]
[1739889782727,0.18480627,95930.0,95923.0,0.2085367]
[1739889782917,0.18480627,95930.0,95918.0,0.1435]
[1739889783125,0.3608,95926.0,95906.0,0.3608]
[1739889783416,0.2085253,95929.0,95913.0,0.2085595]
[1739889783622,0.2085128,95935.0,95920.0,0.3608]
[1739889784012,0.0685,95938.0,95920.0,0.65073124]
[1739889784216,0.0685,95938.0,95920.0,0.3608]
[1739889784521,0.2085278,95928.0,95920.0,0.3608]
[1739889784924,0.2085278,95928.0,95918.0,0.002]
[1739889785115,0.2085278,95928.0,95918.0,0.3608]
[1739889785317,0.3608,95927.0,95918.0,0.001]
[1739889785617,0.3608,95919.0,95918.0,0.001]
[1739889785918,0.3608,95919.0,95907.0,0.07155643]
[1739889785919,0.2085707,95908.0,95907.0,0.00015643]
[1739889787019,0.00015643,95917.0,95907.0,0.00015643]
[1739889787020,0.2085599,95913.0,95907.0,0.00015643]
[1739889787513,0.00015643,95917.0,95907.0,0.00015643]
[1739889788023,0.00015643,95917.0,95916.0,0.2085533]
[1739889788525,0.2770055,95938.0,95919.0,0.2085452]
[1739889788721,0.0685,95938.0,95927.0,0.3608]
[1739889789024,0.00156413,95950.0,95937.0,0.3608]
[1739889789415,0.00156413,95950.0,95947.0,0.3608]
[1739889789818,0.00156413,95950.0,95948.0,0.2084833]
[1739889790127,0.00156413,95950.0,95949.0,0.3608]
[1739889790320,0.00156413,95950.0,95939.0,0.00015634]
[1739889790625,0.2084863,95947.0,95939.0,0.00015634]
[1739889791322,0.00156413,95950.0,95940.0,0.3608]
[1739889791522,0.00556413,95950.0,95940.0,0.3608]
[1739889791720,0.00556413,95950.0,95940.0,0.65051986]
[1739889791924,0.00556413,95950.0,95949.0,0.3608]
[1739889792121,0.00015634,95958.0,95949.0,0.3608]
[1739889792327,0.00015634,95958.0,95957.0,0.3608]
[1739889792723,0.004,95950.0,95940.0,0.001]
[1739889792930,0.004,95950.0,95941.0,0.3524184]
[1739889793120,0.004,95950.0,95941.0,0.2084984]
[1739889793321,0.004,95950.0,95939.0,0.00015634]
[1739889793322,0.00315634,95958.0,95945.0,0.3608]
[1739889793518,0.00315634,95958.0,95953.0,0.3608]
[1739889793822,0.00315634,95958.0,95956.0,0.2084652]
[1739889794026,0.00315634,95958.0,95954.0,0.0764]
[1739889794833,0.00015634,95958.0,95954.0,0.0764]
[1739889795530,0.00415634,95958.0,95956.0,0.2084647]
[1739889797721,0.3608,95973.0,95967.0,0.2084419]
[1739889797924,0.18530216,95977.0,95960.0,0.28971986]
[1739889798228,0.18530216,95977.0,95965.0,0.3608]
[1739889798430,0.208442,95968.0,95965.0,0.3608]
[1739889798625,0.2084439,95967.0,95954.0,0.1542]
[1739889798819,0.208432,95972.0,95959.0,0.3608]
[1739889799016,0.00010333,95970.0,95959.0,0.3608]
[1739889799221,0.00010333,95970.0,95960.0,0.001]
[1739889799419,0.2084549,95962.0,95960.0,0.001]
[1739889800430,0.2084549,95962.0,95951.0,0.00015634]
[1739889800431,0.208475,95952.0,95951.0,0.00015634]
[1739889801825,0.36140001,95956.0,95951.0,0.00015634]
[1739889802025,0.36136001,95964.0,95959.0,0.2084579]
[1739889802228,0.36136001,95964.0,95951.0,0.00015634]
[1739889802229,0.3608,95964.0,95951.0,0.00015634]
[1739889802426,0.3608,95964.0,95951.0,0.20863334]
[1739889802728,0.18530216,95965.0,95951.0,0.00015634]
[1739889803533,0.18530216,95965.0,95957.0,0.3608]
[1739889803830,0.18530216,95965.0,95963.0,0.2084504]
[1739889804827,0.00010333,95970.0,95964.0,0.0721]
[1739889805029,0.3608,95968.0,95951.0,0.00015634]
[1739889805725,0.2084434,95967.0,95951.0,0.00015634]
[1739889805928,0.002,95965.0,95957.0,0.2084638]
[1739889806134,0.002,95965.0,95958.0,0.208461]
[1739889806434,0.002,95968.0,95959.0,0.2084586]
[1739889806836,0.002,95968.0,95961.0,0.2084546]
[1739889807028,0.002,95965.0,95951.0,0.00015634]
[1739889807230,0.002,95965.0,95957.0,0.3608]
[1739889807535,0.2084584,95960.0,95955.0,0.1416]
[1739889807837,0.2084606,95959.0,95951.0,0.00015634]
[1739889808036,0.002,95965.0,95951.0,0.00015634]
[1739889808238,0.2084559,95961.0,95951.0,0.20863264]
[1739889808832,0.002,95965.0,95951.0,0.00015634]
[1739889809037,0.002,95965.0,95957.0,0.208462]
[1739889809332,0.208446,95966.0,95959.0,0.001]
[1739889809540,0.36240001,95968.0,95959.0,0.001]
[1739889809842,0.2084477,95965.0,95959.0,0.001]
[1739889810029,0.2084477,95965.0,95954.0,0.2084694]
[1739889810030,0.2094477,95965.0,95954.0,0.2084694]
[1739889810540,0.2084477,95965.0,95959.0,0.001]
[1739889810735,0.001,95966.0,95959.0,0.001]
[1739889811143,0.2084561,95961.0,95959.0,0.001]
[1739889812229,0.54667433,95968.0,95959.0,0.001]
[1739889812230,0.5692582,95960.0,95959.0,0.001]
[1739889814426,0.2084722,95954.0,95951.0,0.00015634]
[1739889814635,0.36144,95960.0,95951.0,0.00015634]
[1739889814833,0.3608,95960.0,95951.0,0.00015634]
[1739889815039,0.2084712,95954.0,95951.0,0.00015634]
[1739889815240,0.3608,95952.0,95951.0,0.00015634]
[1739889815539,0.3608,95952.0,95919.0,0.2085463]
[1739889815747,0.3608,95921.0,95907.0,0.5805]
[1739889815948,0.00064,95929.0,95927.0,0.2085281]
[1739889816242,0.3608,95940.0,95930.0,0.2085208]
[1739889816737,0.36292408,95948.0,95932.0,0.3608]
[1739889816942,0.2085137,95935.0,95932.0,0.3608]
[1739889817748,0.00015634,95945.0,95932.0,0.3608]
[1739889817749,0.2085151,95934.0,95932.0,0.3608]
[1739889818634,0.00015634,95945.0,95935.0,0.2085113]
[1739889818835,0.00015634,95945.0,95932.0,0.3608]
[1739889818836,0.00015634,95945.0,95943.0,0.2084927]
[1739889819134,0.3608,95969.0,95944.0,0.3608]
[1739889819438,0.0755,95971.0,95963.0,0.2084502]
[1739889819631,0.0744,95982.0,95969.0,0.3608]
[1739889819834,0.2084304,95973.0,95969.0,0.3608]
[1739889820342,0.2084493,95964.0,95961.0,0.00015634]
[1739889820542,0.2084517,95963.0,95961.0,0.00015634]
[1739889820937,0.36144,95970.0,95961.0,0.00015634]
[1739889821249,0.2084517,95963.0,95961.0,0.00015634]
[1739889822344,0.3608,95962.0,95947.0,0.90872]
[1739889822544,0.18789088,95960.0,95947.0,0.90872]
[1739889822740,0.18789088,95960.0,95940.0,0.2085005]
[1739889822741,0.2084745,95953.0,95939.0,0.3608]
[1739889822941,0.2084745,95953.0,95940.0,0.18789088]
[1739889823347,0.2084745,95953.0,95939.0,0.3608]
[1739889823545,0.2084745,95953.0,95947.0,0.2084857]
[1739889823748,0.00015634,95956.0,95955.0,0.2084685]
[1739889824046,0.24763401,95983.0,95975.0,0.2084251]
[1739889824247,0.24763401,95983.0,95975.0,0.9300251]
[1739889824449,0.1,96000.0,95975.0,1.63032]
[1739889824750,0.1,96000.0,95984.0,0.3608]
[1739889824950,0.1,96000.0,95999.0,0.3608]
[1739889825152,0.1,96000.0,95999.0,0.49984]
[1739889826249,0.00994306,96009.0,95999.0,0.49984]
[1739889826456,0.2083192,96024.0,96008.0,0.3608]
[1739889826760,0.3608,96109.0,96044.0,0.01]
[1739889826956,0.01042362,96076.0,96067.0,0.7216]
[1739889827252,0.01042362,96076.0,96075.0,0.3608]
[1739889827549,0.14450218,96099.0,96075.0,0.3608]
[1739889827847,0.49099273,96097.0,96096.0,0.3608]
[1739889828056,0.69931273,96097.0,96096.0,0.3608]
[1739889828252,1.01129659,96097.0,96096.0,0.3608]
[1739889828854,0.69931273,96097.0,96096.0,0.3608]
[1739889829049,0.69931273,96097.0,96096.0,0.7216]
[1739889829647,1.01129659,96097.0,96096.0,0.7216]
[1739889829857,0.2081626,96096.0,96087.0,0.00015616]
[1739889830041,0.20832,96088.0,96087.0,0.00015616]
[1739889830447,0.52030386,96088.0,96069.0,0.90928]
[1739889830657,0.20832,96070.0,96050.0,0.18601534]
[1739889830851,0.2082003,96079.0,96069.0,0.3608]
[1739889831055,0.10408,96078.0,96069.0,0.3608]
[1739889831248,0.3124,96070.0,96069.0,0.3608]
[1739889831560,0.20832,96070.0,96069.0,0.3608]
[1739889831754,0.3124,96070.0,96069.0,0.3608]
[1739889831951,0.20832,96070.0,96069.0,0.3608]
[1739889832152,0.00015555,96079.0,96076.0,0.2082054]
[1739889832357,0.20832,96078.0,96076.0,0.2082054]
[1739889832660,0.20832,96078.0,96069.0,0.36148]
[1739889832858,0.00015555,96079.0,96077.0,0.2082037]
[1739889833057,0.20805941,96079.0,96078.0,0.3608]
[1739889833247,0.20832,96070.0,96069.0,0.3608]
[1739889833448,0.20932,96070.0,96069.0,0.50144]
[1739889833652,0.3134,96070.0,96069.0,0.50144]
[1739889833849,0.3134,96070.0,96069.0,0.50044]
[1739889834059,0.3124,96070.0,96069.0,0.50044]
[1739889834248,0.52030386,96070.0,96060.0,0.00015616]
[1739889834449,0.20832,96061.0,96060.0,0.00015616]
[1739889834956,0.52034386,96061.0,96060.0,0.00015616]
[1739889835964,0.001,96070.0,96069.0,0.2082211]
[1739889836373,0.3134,96070.0,96069.0,0.2082211]
[1739889836766,0.3124,96070.0,96069.0,0.2082211]
[1739889836966,0.3134,96070.0,96060.0,0.36095616]
[1739889837165,0.20832,96061.0,96060.0,0.00015616]
[1739889837565,0.31244,96061.0,96060.0,0.20839676]
[1739889837761,0.20832,96061.0,96060.0,0.20839676]
[1739889838171,0.001,96070.0,96060.0,0.00015616]
[1739889838372,0.20832,96067.0,96065.0,0.2082294]
[1739889838875,0.001,96070.0,96060.0,0.28887334]
[1739889838876,0.001,96070.0,96069.0,0.2082211]
[1739889839067,0.001,96070.0,96066.0,0.3608]
[1739889839268,0.001,96070.0,96067.0,0.13848]
[1739889839670,0.20832,96068.0,96067.0,0.13848]
[1739889840067,0.52030386,96068.0,96060.0,0.00015616]
[1739889840271,0.3124,96061.0,96060.0,0.00015616]
[1739889840468,1.08734433,96061.0,96060.0,0.00015616]
[1739889841073,1.08734433,96061.0,96049.0,0.3608]
[1739889841074,0.2082615,96051.0,96049.0,0.3608]
[1739889841272,0.31044197,96050.0,96049.0,0.3608]
[1739889841774,0.51834583,96050.0,96049.0,0.3608]
[1739889842178,0.2082645,96049.0,96035.0,0.3608]
[1739889842382,0.31044197,96048.0,96040.0,0.00015616]
[1739889842879,0.2082818,96041.0,96040.0,0.00015616]
[1739889843067,0.87952377,96041.0,96040.0,0.00015616]
[1739889843271,0.72662763,96041.0,96040.0,0.00015616]
[1739889843670,0.38682386,96041.0,96024.0,0.90784]
[1739889843875,0.51734583,96025.0,96024.0,0.90784]
[1739889844078,0.30944197,96025.0,96024.0,0.90784]
[1739889844278,0.51734583,96025.0,96024.0,0.90784]
[1739889844673,0.51734583,96025.0,96024.0,1.1161587]
[1739889844873,0.0748,96041.0,96024.0,0.90784]
[1739889845073,0.20532197,96031.0,96027.0,0.3608]
[1739889845279,0.00015616,96034.0,96033.0,0.2082992]
[1739889845673,0.20547813,96034.0,96027.0,0.3608]
[1739889845874,0.20532197,96032.0,96028.0,0.2083088]
[1739889846082,0.20532197,96030.0,96027.0,0.3608]
[1739889846378,0.30944197,96028.0,96019.0,0.3608]
[1739889846682,0.20532197,96020.0,96019.0,0.3608]
[1739889847280,0.30948197,96020.0,96006.0,0.3608]
[1739889847482,0.56612197,96016.0,96006.0,0.3608]
[1739889847677,0.67028197,96016.0,96006.0,0.3608]
[1739889847984,0.67028197,96016.0,96006.0,0.5691563]
[1739889848183,0.30948197,96016.0,96009.0,0.2083495]
[1739889848578,0.51738583,96016.0,96006.0,0.3608]
[1739889849874,0.51738583,96016.0,96015.0,0.20849436]
[1739889850079,0.51738583,96016.0,96015.0,0.00015616]
[1739889850789,0.67938583,96016.0,96015.0,0.00015616]
[1739889851675,0.68138583,96016.0,96015.0,0.00015616]
[1739889853184,0.51938583,96016.0,96015.0,0.00015616]
[1739889853888,0.51938583,96016.0,96015.0,0.36095616]
[1739889854286,0.002,96016.0,96015.0,0.36095616]
[1739889854992,0.002,96016.0,96015.0,0.56929436]
[1739889855183,0.00015616,96034.0,96015.0,0.36095616]
[1739889855383,0.10416,96033.0,96027.0,0.5691114]
[1739889855687,0.00015616,96034.0,96033.0,0.2082992]
[1739889856587,0.30959813,96034.0,96029.0,0.3608]
[1739889856784,0.20532197,96030.0,96029.0,0.3608]
[1739889857191,0.30944197,96030.0,96029.0,0.3608]
[1739889858087,0.001,96033.0,96029.0,0.3608]
[1739889858688,0.001,96030.0,96029.0,0.3608]
[1739889858889,0.3608,96052.0,96029.0,0.3608]
[1739889859193,0.20532197,96043.0,96030.0,0.28871718]
[1739889859395,0.20532197,96043.0,96040.0,0.3608]
[1739889859591,0.0826,96061.0,96040.0,0.3608]
[1739889860293,0.00015616,96052.0,96040.0,0.3608]
[1739889860487,0.00015616,96052.0,96042.0,0.3608]
[1739889860883,0.1568,96079.0,96042.0,0.3608]
[1739889861087,0.1568,96079.0,96056.0,0.3608]
[1739889861088,0.20532197,96062.0,96056.0,0.3608]
[1739889861291,0.10412,96078.0,96056.0,0.3608]
[1739889861292,0.20532197,96063.0,96056.0,0.3608]
[1739889861685,0.1568,96079.0,96056.0,0.3608]
[1739889861992,0.20532197,96063.0,96057.0,0.13752]
[1739889862190,0.10408,96078.0,96056.0,0.3608]
[1739889862191,0.20532197,96065.0,96062.0,0.3608]